fUSD/lending_fUSD_20251112
["ID","MTS","AMOUNT","RATE_DAILY","PERIOD"]
[393719295,1762949441001,-2636.60817641,0.00037206,2]
[393719296,1762949441010,-500.0,0.00037239,2]
[393719297,1762949441020,-500.0,0.00037239,10]
[393719298,1762949441029,-243.29876332,0.00037239,60]
[393719299,1762949441038,-150.0,0.00037239,2]
[393719300,1762949441047,-463.7947703,0.00037239,120]
[393719301,1762949441057,-200.0,0.00037239,2]
[393719302,1762949441066,-150.0,0.00037239,2]
[393719303,1762949441075,-555.79899462,0.00037239,2]
[393719304,1762949441085,-683.0,0.00037239,2]
[393719305,1762949441095,-500.0,0.00037267,30]
[393719306,1762949441104,-218.314595,0.0003727,60]
[393719307,1762949441114,-491.27,0.0003727,14]
[393719308,1762949441124,-150.0,0.0003733,2]
[393719309,1762949441134,-1115.21991021,0.00037348,5]
[393719310,1762949441143,-156.47,0.0003735,120]
[393719311,1762949441153,-550.0,0.00037376,2]
[393719312,1762949441163,-550.0,0.00037376,10]
[393719313,1762949441172,-257.36782787,0.00037376,2]
[393719314,1762949441182,-150.0,0.00037376,2]
[393719315,1762949441191,-683.0,0.00037376,2]
[393719316,1762949441200,-173.0,0.00037397,30]
[393719317,1762949441212,-153.59012998,0.00037425,30]
[393719318,1762949441222,-211.0,0.00037472,7]
[393719319,1762949441231,-150.0,0.000375,120]
[393719320,1762949441238,-150.0,0.000375,120]
[393719321,1762949441247,-150.0,0.000375,120]
[393719322,1762949441255,-194.61212321,0.00037513,2]
[393719323,1762949441264,-683.0,0.00037513,2]
[393719324,1762949441272,-500.0,0.00037518,2]
[393719325,1762949441281,-500.0,0.00037518,2]
[393719326,1762949441290,-500.0,0.00037518,2]
[393719327,1762949441298,-500.0,0.00037518,2]
[393719328,1762949441308,-500.0,0.00037518,2]
[393719329,1762949441317,-500.0,0.00037518,2]
[393719330,1762949441326,-500.0,0.00037518,2]
[393719331,1762949441335,-500.0,0.00037518,2]
[393719332,1762949441343,-500.0,0.00037518,2]
[393719333,1762949441351,-500.0,0.00037518,2]
[393719334,1762949441360,-529.95219414,0.00037518,2]
[393719335,1762949441368,-500.0,0.00037518,2]
[393719336,1762949441376,-600.0,0.00037535,7]
[393719337,1762949441385,-800.0,0.00037535,7]
[393719338,1762949441393,-500.0,0.00037535,7]
[393719339,1762949441402,-513.622924,0.00037541,2]
[393719340,1762949441410,-33607.5263936,0.00037541,2]
[393719341,1762949441418,-11546.5392957,0.00037541,2]
[393719342,1762949441426,-491.27,0.00037544,14]
[393719343,1762949441435,-188.47,0.0003757,48]
[393719344,1762949441443,-200.0,0.00037571,2]
[393719345,1762949441451,-200.0,0.00037571,2]
[393719346,1762949441460,-1000.0,0.00037571,120]
[393719347,1762949441470,-1000.0,0.00037571,120]
[393719348,1762949441478,-924.20295,0.00037571,2]
[393719349,1762949441488,-1141.26008863,0.00037571,2]
[393719350,1762949441497,-500.0,0.00037573,5]
[393719351,1762949441506,-211.0,0.00037607,2]
[393719352,1762949441514,-155.42,0.00037616,60]
[393719353,1762949441523,-683.0,0.0003765,2]
[393719354,1762949441532,-155.42,0.00037716,60]
[393719355,1762949441545,-874.04,0.00037722,5]
[393719356,1762949441553,-211.0,0.00037758,2]
[393719357,1762949441562,-683.0,0.00037787,2]
[393719358,1762949441571,-155.42,0.00037816,60]
[393719359,1762949441580,-1000.0,0.00037816,7]
[393719360,1762949441590,-491.28,0.00037818,14]
[393719361,1762949441598,-500.0,0.00037831,30]
[393719362,1762949441608,-153.59012997,0.00037836,30]
[393719363,1762949441619,-153.59012998,0.00037836,30]
[393719364,1762949441628,-155.43,0.00037916,60]
[393719365,1762949441638,-683.0,0.00037924,2]
[393719366,1762949441647,-200.0,0.00037947,2]
[393719367,1762949441657,-168.0,0.0003799,120]
[393719368,1762949441667,-1000.0,0.00038,120]
[393719369,1762949441676,-1000.0,0.00038,120]
[393719370,1762949441685,-376.0,0.00038,30]
[393719371,1762949441695,-683.0,0.00038061,2]
[393719372,1762949441705,-300.0,0.00038113,7]
[393719373,1762949441714,-375.0,0.00038113,7]
[393719374,1762949441723,-252.32,0.00038137,5]
[393719375,1762949441731,-5505.332,0.00038148,2]
[393719376,1762949441739,-560.0,0.00038148,2]
[393719377,1762949441746,-2143.0,0.00038148,2]
[393719378,1762949441755,-6482.0,0.00038148,2]
[393719379,1762949441762,-500.0,0.0003817,30]
[393719380,1762949441769,-500.0,0.0003817,30]
[393719381,1762949441776,-500.0,0.0003817,30]
[393719382,1762949441786,-500.0,0.00038179,7]
[393719383,1762949441793,-356.33,0.00038179,7]
[393719384,1762949441802,-683.0,0.00038198,2]
[393719385,1762949441811,-153.59012997,0.00038247,30]
[393719386,1762949441821,-153.59012998,0.00038247,30]
[393719387,1762949441831,-300.0,0.0003825,7]
[393719388,1762949441840,-375.0,0.0003825,7]
[393719389,1762949441850,-9548.15263515,0.00038256,2]
[393719390,1762949441859,-200.0,0.00038301,7]
[393719391,1762949441868,-565.0,0.00038313,5]
[393719392,1762949441878,-683.0,0.00038335,2]
[393719393,1762949441887,-9548.15263511,0.00038351,2]
[393719394,1762949441897,-1622.0,0.00038356,5]
[393719395,1762949441906,-1000.0,0.00038356,120]
[393719396,1762949441915,-1302.0,0.00038356,120]
[393719397,1762949441934,-600.0,0.00038357,7]
[393719398,1762949441943,-800.0,0.00038357,7]
[393719399,1762949441953,-1000.0,0.00038394,120]
[393719400,1762949441964,-1000.0,0.000384,10]
[393719401,1762949441974,-300.0,0.00038411,14]
[393719402,1762949441983,-150.0,0.00038421,7]
[393719403,1762949441993,-1000.0,0.00038431,120]
[393719404,1762949442003,-9548.15263511,0.00038445,2]
[393719405,1762949442012,-1000.0,0.00038468,120]
[393719406,1762949442022,-683.0,0.00038472,2]
[393719407,1762949442031,-1000.0,0.000385,3]
[393719408,1762949442040,-600.0,0.000385,14]
[393719409,1762949442050,-1000.0,0.00038506,120]
[393719410,1762949442059,-9548.15263511,0.0003854,2]
[393719411,1762949442068,-1000.0,0.00038543,120]
[393719412,1762949442078,-300.0,0.00038575,21]
[393719413,1762949442087,-168.0,0.00038576,2]
[393719414,1762949442096,-1000.0,0.0003858,120]
[393719415,1762949442105,-1200.0,0.000386,14]
[393719416,1762949442115,-1573.246792,0.000386,29]
[393719417,1762949442124,-683.0,0.00038609,2]
[393719418,1762949442133,-357.9294872,0.00038614,2]
[393719419,1762949442142,-1000.0,0.00038618,120]
[393719420,1762949442152,-376.0,0.0003863,90]
[393719421,1762949442161,-9548.15263511,0.00038635,2]
[393719422,1762949442170,-1000.0,0.00038655,120]
[393719423,1762949442179,-168.0,0.00038657,2]
[393719424,1762949442188,-153.59012997,0.00038658,30]
[393719425,1762949442197,-153.59012998,0.00038658,30]
[393719426,1762949442207,-1000.0,0.00038692,120]
[393719427,1762949442216,-500.0,0.000387,120]
[393719428,1762949442225,-500.0,0.000387,120]
[393719429,1762949442234,-500.0,0.000387,120]
[393719430,1762949442243,-500.0,0.000387,120]
[393719431,1762949442253,-500.0,0.000387,120]
[393719432,1762949442263,-500.0,0.000387,120]
[393719433,1762949442272,-500.0,0.000387,120]
[393719434,1762949442281,-500.0,0.000387,120]
[393719435,1762949442290,-500.0,0.000387,120]
[393719436,1762949442300,-500.0,0.000387,120]
[393719437,1762949442309,-500.0,0.000387,120]
[393719438,1762949442318,-500.0,0.000387,120]
[393719439,1762949442327,-500.0,0.000387,120]
[393719440,1762949442336,-500.0,0.000387,120]
[393719441,1762949442345,-500.0,0.000387,120]
[393719442,1762949442353,-500.0,0.000387,120]
[393719443,1762949442362,-500.0,0.000387,120]
[393719444,1762949442372,-500.0,0.000387,120]
[393719445,1762949442381,-500.0,0.000387,120]
[393719446,1762949442390,-500.0,0.000387,120]
[393719447,1762949442399,-1900.0,0.000387,14]
[393719448,1762949442409,-9548.15263511,0.00038729,2]
[393719449,1762949442419,-1000.0,0.0003873,120]
[393719450,1762949442429,-150.0,0.00038737,7]
[393719451,1762949442439,-683.0,0.00038746,2]
[393719452,1762949442448,-1000.0,0.00038767,120]
[393719453,1762949442457,-211.0,0.00038767,7]
[393719454,1762949442467,-1000.0,0.00038772,2]
[393719455,1762949442476,-1000.0,0.00038782,7]
[393719456,1762949442495,-172.90065377,0.00038783,2]
[393719457,1762949442504,-168.0,0.00038788,7]
[393719458,1762949442514,-150.0,0.000388,120]
[393719459,1762949442524,-150.0,0.000388,120]
[393719460,1762949442534,-2500.0,0.000388,14]
[393719461,1762949442547,-150.54399371,0.000388,120]
[393719462,1762949442556,-150.54399367,0.000388,120]
[393719463,1762949442566,-150.54399367,0.000388,120]
[393719464,1762949442575,-150.54399367,0.000388,120]
[393719465,1762949442585,-150.54399367,0.000388,120]
[393719466,1762949442595,-150.54399367,0.000388,120]
[393719467,1762949442604,-150.54399367,0.000388,120]
[393719468,1762949442614,-150.54399367,0.000388,120]
[393719469,1762949442626,-150.54399367,0.000388,120]
[393719470,1762949442635,-150.54399367,0.000388,120]
[393719471,1762949442644,-150.54399367,0.000388,120]
[393719472,1762949442653,-150.54399367,0.000388,120]
[393719473,1762949442662,-150.54399367,0.000388,120]
[393719474,1762949442671,-168.0,0.00038804,2]
[393719475,1762949442680,-1000.0,0.00038804,120]
[393719476,1762949442690,-211.0,0.00038809,7]
[393719477,1762949442699,-827.0,0.00038819,7]
[393719478,1762949442709,-823.0,0.00038819,7]
[393719479,1762949442718,-151.0,0.00038819,7]
[393719480,1762949442727,-151.0,0.00038819,7]
[393719481,1762949442737,-151.0,0.00038819,7]
[393719482,1762949442746,-151.0,0.00038819,7]
[393719483,1762949442755,-151.0,0.00038819,7]
[393719484,1762949442764,-151.0,0.00038819,7]
[393719485,1762949442773,-151.0,0.00038819,7]
[393719486,1762949442782,-151.0,0.00038819,7]
[393719487,1762949442791,-151.0,0.00038819,7]
[393719488,1762949442800,-151.0,0.00038819,7]
[393719489,1762949442809,-151.0,0.00038819,7]
[393719490,1762949442818,-151.0,0.00038819,7]
[393719491,1762949442827,-151.0,0.00038819,7]
[393719492,1762949442836,-151.0,0.00038819,7]
[393719493,1762949442845,-151.0,0.00038819,7]
[393719494,1762949442855,-151.0,0.00038819,7]
[393719495,1762949442863,-194.6588664,0.00038819,7]
[393719496,1762949442873,-284.7786349,0.00038819,7]
[393719497,1762949442882,-152.0,0.00038819,7]
[393719498,1762949442891,-827.0,0.00038819,7]
[393719500,1762949442900,-152.0,0.00038819,7]
[393719501,1762949442909,-827.0,0.00038819,7]
[393719503,1762949442918,-152.0,0.00038819,7]
[393719505,1762949442927,-827.0,0.00038819,7]
[393719507,1762949442936,-152.0,0.00038819,7]
[393719509,1762949442945,-827.0,0.00038819,7]
[393719510,1762949442954,-152.0,0.00038819,7]
[393719511,1762949442963,-827.0,0.00038819,7]
[393719512,1762949442972,-152.0,0.00038819,7]
[393719513,1762949442981,-827.0,0.00038819,7]
[393719514,1762949442990,-152.0,0.00038819,7]
[393719515,1762949442999,-888.12140927,0.00038819,7]
[393719516,1762949443008,-290.0009825,0.00038819,7]
[393719517,1762949443018,-9548.15263511,0.00038824,2]
[393719519,1762949443027,-153.386069,0.00038829,120]
[393719520,1762949443035,-151.956882,0.00038829,120]
[393719521,1762949443045,-151.0,0.00038829,120]
[393719523,1762949443054,-151.0,0.00038829,120]
[393719524,1762949443063,-151.0,0.00038829,120]
[393719525,1762949443071,-151.0,0.00038829,45]
[393719526,1762949443080,-151.0,0.00038829,120]
[393719527,1762949443089,-151.0,0.00038829,120]
[393719528,1762949443098,-3427.0,0.00038829,2]
[393719530,1762949443107,-1320.709,0.00038829,2]
[393719531,1762949443116,-579.595,0.00038829,2]
[393719532,1762949443125,-613.497,0.00038829,2]
[393719533,1762949443134,-1597.0,0.00038829,2]
[393719534,1762949443143,-821.0,0.00038829,2]
[393719535,1762949443152,-813.0,0.00038829,2]
[393719536,1762949443161,-1274.0,0.00038829,2]
[393719537,1762949443170,-150.54399367,0.00038835,120]
[393719538,1762949443179,-1000.0,0.00038842,120]
[393719539,1762949443188,-200.0,0.00038865,20]
[393719540,1762949443197,-161.31426345,0.00038873,2]
[393719541,1762949443207,-151.16713156,0.00038873,5]
[393719542,1762949443216,-164.66375491,0.00038873,5]
[393719543,1762949443224,-508.67680499,0.00038873,5]
[393719544,1762949443234,-1000.0,0.00038879,120]
[393719545,1762949443242,-150.54399367,0.00038879,120]
[393719546,1762949443251,-6967.8876991,0.00038882,2]
[393719547,1762949443261,-18464.94341889,0.00038882,29]
[393719548,1762949443269,-683.0,0.00038883,2]
[393719549,1762949443278,-267.94059571,0.00038886,14]
[393719550,1762949443287,-2076.2527,0.00038888,30]
[393719551,1762949443296,-1454.03053792,0.0003889,2]
[393719552,1762949443306,-151.0,0.00038898,120]
[393719553,1762949443315,-159.002243,0.00038898,120]
[393719554,1762949443324,-1000.0,0.000389,4]
[393719555,1762949443334,-5000.0,0.000389,30]
[393719556,1762949443343,-199.718562,0.000389,120]
[393719557,1762949443528,-199.718562,0.000389,120]
[393719558,1762949443539,-199.718562,0.000389,120]
[393719559,1762949443552,-199.718562,0.000389,120]
[393719560,1762949443562,-3200.0,0.000389,14]
[393719561,1762949443571,-1000.0,0.00038912,7]
[393719562,1762949443580,-1454.03053786,0.00038914,2]
[393719563,1762949443591,-1000.0,0.00038917,120]
[393719564,1762949443600,-9548.15263511,0.00038919,2]
[393719565,1762949443609,-150.54399367,0.00038924,120]
[393719566,1762949443619,-500.0,0.00038935,30]
[393719567,1762949443628,-1454.03053786,0.00038938,2]
[393719568,1762949443637,-500.0,0.00038948,30]
[393719569,1762949443647,-1000.0,0.00038954,120]
[393719570,1762949443656,-1454.03053786,0.00038963,2]
[393719571,1762949443665,-1000.0,0.00038966,7]
[393719572,1762949443675,-1000.0,0.00038966,7]
[393719573,1762949443684,-3940.0,0.00038966,120]
[393719574,1762949443693,-150.54399367,0.00038968,120]
[393719575,1762949443702,-151.0,0.0003897,30]
[393719576,1762949443712,-200.0,0.0003897,120]
[393719577,1762949443721,-200.0,0.0003897,120]
[393719578,1762949443730,-200.0,0.0003897,120]
[393719579,1762949443739,-200.0,0.0003897,120]
[393719580,1762949443749,-221.68251196,0.00038972,7]
[393719581,1762949443758,-159.84209483,0.00038973,5]
[393719582,1762949443767,-154.201287,0.0003898,120]
[393719583,1762949443777,-255.74,0.0003898,7]
[393719584,1762949443786,-151.0,0.0003898,120]
[393719585,1762949443796,-151.0,0.0003898,45]
[393719586,1762949443805,-151.0,0.0003898,120]
[393719587,1762949443814,-5379.57903384,0.0003898,4]
[393719588,1762949443823,-1344.89475846,0.00038981,4]
[393719589,1762949443832,-1454.03053786,0.00038987,2]
[393719590,1762949443842,-151.0,0.0003899,30]
[393719591,1762949443851,-200.0,0.0003899,120]
[393719592,1762949443860,-200.0,0.0003899,120]
[393719593,1762949443869,-200.0,0.0003899,120]
[393719594,1762949443878,-200.0,0.0003899,120]
[393719595,1762949443888,-199.718562,0.0003899,120]
[393719596,1762949443897,-199.718562,0.0003899,120]
[393719597,1762949443906,-199.718562,0.0003899,120]
[393719598,1762949443915,-199.718562,0.0003899,120]
[393719599,1762949443925,-199.718562,0.0003899,120]
[393719600,1762949443934,-199.718562,0.0003899,120]
[393719601,1762949443943,-199.718562,0.0003899,120]
[393719602,1762949443952,-199.718562,0.0003899,120]
[393719603,1762949443962,-151.0,0.0003899,120]
[393719604,1762949443971,-151.0,0.0003899,120]
[393719605,1762949443981,-180.54548,0.0003899,120]
[393719606,1762949443990,-151.0,0.0003899,120]
[393719607,1762949443999,-26897.8951692,0.0003899,4]
[393719608,1762949444008,-89218.1021147,0.0003899,4]
[393719609,1762949444018,-151.0,0.0003899,120]
[393719610,1762949444027,-153.938725,0.0003899,120]
[393719611,1762949444037,-151.0,0.0003899,120]
[393719612,1762949444046,-151.0,0.0003899,30]
[393719613,1762949444055,-151.0,0.0003899,120]
[393719614,1762949444064,-168.98989,0.0003899,120]
[393719615,1762949444073,-151.0,0.0003899,120]
[393719616,1762949444083,-151.0,0.0003899,45]
[393719617,1762949444092,-151.0,0.0003899,120]
[393719618,1762949444101,-1000.0,0.00038991,120]
[393719619,1762949444110,-4055.36827794,0.00038995,4]
[393719620,1762949444120,-1098.05342991,0.00038999,30]
[393719621,1762949444130,-1098.05342992,0.00038999,30]
[393719622,1762949444139,-14352.1915983,0.00039,14]
[393719623,1762949444434,-422.47117998,0.00039,14]
[393719624,1762949444448,-15639.30684085,0.00039,14]
[393719626,1762949446596,-11448.0,0.00039,14]
[393719655,1762950308343,14486.53,0.00018,2]
[393719656,1762950308373,21998.64636861,0.00018,2]
[393719657,1762950308398,50000.0,0.00018,2]
[393719658,1762950308427,226510.93892087,0.00018,2]
[393719659,1762950319666,2993.0264079,9e-05,2]
[393719660,1762950325917,151.0,0.00018,2]
[393719661,1762950327021,155.07065898,0.00018,2]
[393719664,1762950397131,-268.57779596,0.0002465,2]
[393719665,1762950470422,58642.39560024,0.00015,2]
[393719668,1762950572080,-1293.645668,0.00024,2]
[393719686,1762950632168,-488.87953632,0.00024,2]
[393719687,1762950632179,-28.13742147,0.00024209,2]
[393719688,1762950632190,-536.86257853,0.00024209,2]
[393719689,1762950632200,-417.84603739,0.0002421,2]
[393719690,1762950632210,-3247.99215123,0.0002421,2]
[393719691,1762950632222,-413.42599432,0.0002421,2]
[393719692,1762950632231,-162.28173829,0.0002455,15]
[393719693,1762950632241,-300.0,0.00024649,2]
[393719694,1762950632250,-482.0,0.00024649,2]
[393719695,1762950632259,-300.0,0.00024649,2]
[393719696,1762950632269,-323.20778543,0.0002465,2]
[393719697,1762950632279,-500.0,0.0002465,2]
[393719698,1762950632288,-500.0,0.0002465,2]
[393719699,1762950632297,-500.0,0.0002465,2]
[393719700,1762950632307,-500.0,0.0002465,2]
[393719701,1762950632317,-500.0,0.0002465,2]
[393719702,1762950632326,-500.0,0.0002465,2]
[393719703,1762950632336,-500.0,0.0002465,2]
[393719704,1762950632349,-500.0,0.0002465,2]
[393719705,1762950632359,-237.39055947,0.0002465,2]
[393719706,1762950632370,-262.60944053,0.0002465,2]
[393719707,1762950632380,-500.0,0.0002465,2]
[393719708,1762950632389,-165.91643662,0.0002465,2]
[393719709,1762950632399,-106.61699974,0.000248,30]
[393719729,1762950638598,-58.93837014,0.000248,30]
[393719730,1762950638608,-175.59832493,0.000249,2]
[393719731,1762950638618,-2526.38812415,0.00025,30]
[393719732,1762950638629,-719.5503533,0.00025,2]
[393719733,1762950638638,-222.77706269,0.00025,21]
[393719734,1762950638647,-420.0,0.00026713,2]
[393719735,1762950638657,-587.0,0.00028949,2]
[393719736,1762950638667,-1765.63,0.00030137,7]
[393719737,1762950638676,-823.0,0.00031373,2]
[393719738,1762950638686,-166.66,0.00033518,30]
[393719739,1762950638695,-242.0,0.00034,2]
[393719740,1762950638705,-150.0,0.00035496,2]
[393719741,1762950638714,-150.0,0.00035504,2]
[393719742,1762950638724,-601.8422817,0.00035675,30]
[393719743,1762950638733,-500.0,0.00035808,30]
[393719744,1762950638743,-874.04,0.0003607,5]
[393719745,1762950638752,-153.0,0.00036166,120]
[393719746,1762950638762,-153.0,0.00036166,120]
[393719747,1762950638771,-153.0,0.00036166,120]
[393719748,1762950638781,-153.0,0.00036166,120]
[393719749,1762950638792,-153.0,0.00036166,120]
[393719750,1762950638802,-153.0,0.00036166,120]
[393719751,1762950638812,-153.0,0.00036166,120]
[393719752,1762950638822,-153.0,0.00036166,120]
[393719753,1762950638832,-153.0,0.00036166,120]
[393719754,1762950638842,-153.0,0.00036166,120]
[393719755,1762950638852,-936.0,0.00036307,3]
[393719756,1762950638862,-1088.69,0.00036308,30]
[393719757,1762950638872,-171.71,0.00036444,2]
[393719758,1762950638882,-839.16,0.00036515,2]
[393719759,1762950638892,-440.0,0.00036691,7]
[393719760,1762950638902,-227.0,0.00036738,2]
[393719761,1762950638912,-294.14,0.00036813,2]
[393719762,1762950638924,-250.0,0.00036813,2]
[393719763,1762950638939,-233.258,0.00036888,7]
[393719764,1762950638950,-1302.0,0.00036986,30]
[393719765,1762950638960,-178.25,0.0003699,60]
[393719766,1762950638970,-227.0,0.00037093,7]
[393719767,1762950638982,-153.59012997,0.00037233,30]
[393719768,1762950638991,-14743.40374951,0.00037318,2]
[393719769,1762950639003,-1051.8,0.00037318,2]
[393719770,1762950639026,-447.66174487,0.00037318,2]
[393719771,1762950639040,-16918.78360562,0.00037318,2]
[393719772,1762950639050,-478.56668374,0.00037338,2]
[393719773,1762950639060,-10303.228413,0.00037343,2]
[393719774,1762950639071,-1626.80543117,0.00037343,2]
[393719775,1762950639081,-176.13847734,0.00037343,2]
[393719776,1762950639091,-151.0,0.00037396,2]
[393719777,1762950639101,-151.0,0.00037396,2]
[393719778,1762950639111,-151.0,0.00037396,2]
[393719779,1762950639122,-151.0,0.00037396,2]
[393719780,1762950639132,-151.0,0.00037396,2]
[393719781,1762950639143,-151.0,0.00037396,2]
[393719782,1762950639153,-151.0,0.00037396,2]
[393719783,1762950639164,-151.0,0.00037396,2]
[393719784,1762950639175,-151.0,0.00037396,2]
[393719785,1762950639185,-151.0,0.00037396,2]
[393719786,1762950639195,-191.80353656,0.00037396,2]
[393719787,1762950639205,-247.367,0.00037407,48]
[393719788,1762950639215,-33622.3689615,0.00037408,4]
[393719789,1762950639225,-186.4,0.00037408,2]
[393719790,1762950639235,-186.4,0.00037408,2]
[393719791,1762950639245,-186.4,0.00037408,2]
[393719792,1762950639254,-186.4,0.00037408,2]
[393719793,1762950639264,-163.51,0.00037408,2]
[393719794,1762950639274,-294.76,0.00037417,14]
[393719795,1762950639284,-150.0,0.00037417,15]
[393719796,1762950639293,-150.0,0.00037417,120]
[393719797,1762950639303,-150.0,0.00037417,15]
[393719798,1762950639313,-500.0,0.00037417,15]
[393719799,1762950639322,-500.0,0.00037417,10]
[393719800,1762950639332,-243.29876332,0.00037417,60]
[393719801,1762950639342,-200.0,0.00037417,15]
[393719802,1762950639351,-150.0,0.00037417,2]
[393719803,1762950639361,-626.0,0.00037417,15]
[393719804,1762950639371,-218.314595,0.00037417,15]
[393719805,1762950639380,-500.0,0.00037417,2]
[393719806,1762950639391,-500.0,0.00037417,2]
[393719807,1762950639400,-500.0,0.00037417,15]
[393719808,1762950639409,-523.63656899,0.00037417,7]
[393719809,1762950639419,-500.0,0.00037417,15]
[393719810,1762950639428,-500.0,0.00037417,7]
[393719811,1762950639438,-432.18111829,0.00037417,2]
[393719812,1762950639447,-500.0,0.00037417,15]
[393719813,1762950639457,-213.55145591,0.00037417,15]
[393719814,1762950639466,-500.0,0.00037417,15]
[393719815,1762950639475,-500.0,0.00037417,15]
[393719816,1762950639484,-159.13123537,0.00037417,2]
[393719817,1762950639493,-500.0,0.00037417,15]
[393719818,1762950639503,-540.49874389,0.00037417,15]
[393719819,1762950639512,-500.0,0.00037417,15]
[393719820,1762950639521,-500.0,0.00037417,15]
[393719821,1762950639531,-500.0,0.00037417,15]
[393719822,1762950639540,-500.0,0.00037417,15]
[393719823,1762950639549,-500.0,0.00037417,15]
[393719824,1762950639559,-500.0,0.00037417,15]
[393719825,1762950639568,-500.0,0.00037417,15]
[393719826,1762950639577,-500.0,0.00037417,15]
[393719827,1762950639587,-500.0,0.00037417,15]
[393719828,1762950639596,-500.0,0.00037417,15]
[393719829,1762950639606,-500.0,0.00037417,15]
[393719830,1762950639615,-500.0,0.00037417,15]
[393719831,1762950639624,-500.0,0.00037417,15]
[393719832,1762950639634,-500.0,0.00037417,15]
[393719833,1762950639643,-500.0,0.00037417,15]
[393719834,1762950639653,-500.0,0.00037417,15]
[393719835,1762950639663,-500.0,0.00037417,15]
[393719836,1762950639673,-500.0,0.00037417,15]
[393719837,1762950639682,-500.0,0.00037417,15]
[393719838,1762950639692,-500.0,0.00037417,15]
[393719839,1762950639702,-500.0,0.00037417,15]
[393719840,1762950639711,-500.0,0.00037417,15]
[393719841,1762950639720,-500.0,0.00037417,15]
[393719842,1762950639729,-500.0,0.00037417,15]
[393719843,1762950639739,-500.0,0.00037417,15]
[393719844,1762950639750,-500.0,0.00037417,15]
[393719845,1762950639760,-500.0,0.00037417,15]
[393719846,1762950639769,-500.0,0.00037417,15]
[393719847,1762950639780,-500.0,0.00037417,15]
[393719848,1762950639790,-500.0,0.00037417,15]
[393719849,1762950639801,-243.61817026,0.00037417,15]
[393719850,1762950639811,-500.0,0.00037417,15]
[393719851,1762950639821,-500.0,0.00037417,15]
[393719852,1762950639831,-500.0,0.00037417,15]
[393719853,1762950639841,-500.0,0.00037417,15]
[393719854,1762950639851,-500.0,0.00037417,15]
[393719855,1762950639861,-500.0,0.00037417,15]
[393719856,1762950639870,-500.0,0.00037417,15]
[393719857,1762950639880,-500.0,0.00037417,15]
[393719858,1762950639891,-500.0,0.00037417,15]
[393719859,1762950639900,-500.0,0.00037417,15]
[393719860,1762950639911,-500.0,0.00037417,15]
[393719861,1762950639926,-500.0,0.00037417,15]
[393719862,1762950639938,-500.0,0.00037417,15]
[393719863,1762950639948,-500.0,0.00037417,15]
[393719864,1762950639959,-500.0,0.00037417,15]
[393719865,1762950639969,-500.0,0.00037417,15]
[393719866,1762950639979,-500.0,0.00037417,15]
[393719867,1762950639988,-500.0,0.00037417,15]
[393719868,1762950639998,-500.0,0.00037417,15]
[393719869,1762950640009,-500.0,0.00037417,15]
[393719870,1762950640019,-500.0,0.00037417,15]
[393719871,1762950640029,-500.0,0.00037417,15]